bitfinex/quotes_BTCUSD_20230404
["timestamp","ask_amount","ask_price","bid_price","bid_amount"]
[1680615817653,0.008,28189.0,28188.0,0.43208318]
[1680615817925,0.008,28189.0,28188.0,0.032089]
[1680615818144,0.008,28189.0,28188.0,0.001]
[1680615818372,0.008,28189.0,28188.0,0.00112]
[1680615818597,0.008,28189.0,28188.0,0.001]
[1680615818822,0.008,28189.0,28188.0,0.231483]
[1680615819045,0.008,28189.0,28188.0,0.231663]
[1680615819527,0.008,28189.0,28188.0,0.95827356]
[1680615819778,0.00099979,28196.0,28189.0,0.2]
[1680615820011,0.00099979,28196.0,28195.0,0.1342]
[1680615820255,0.00021,28203.0,28196.0,0.2]
[1680615820256,0.007092,28200.0,28196.0,0.2]
[1680615820478,0.014184,28200.0,28197.0,0.030513]
[1680615820703,0.014184,28200.0,28196.0,0.030199]
[1680615820704,0.007092,28200.0,28196.0,0.030199]
[1680615820934,0.04506123,28201.0,28196.0,0.230199]
[1680615820935,0.007092,28201.0,28196.0,0.230199]
[1680615821160,0.007092,28200.0,28197.0,0.02855]
[1680615821616,0.03894253,28199.0,28198.0,0.2669]
[1680615821861,0.05528845,28202.0,28198.0,0.67833451]
[1680615822167,0.007092,28200.0,28199.0,0.028799]
[1680615822618,0.04590878,28200.0,28199.0,0.028799]
[1680615822838,0.04590878,28200.0,28199.0,0.298099]
[1680615823038,0.04590878,28200.0,28199.0,0.2693]
[1680615823259,0.11390209,28200.0,28199.0,0.2693]
[1680615823495,0.0572368,28200.0,28199.0,0.2693]
[1680615823717,0.08912361,28200.0,28199.0,0.2693]
[1680615823936,0.04611878,28200.0,28199.0,0.2693]
[1680615824152,0.04605878,28200.0,28199.0,0.2763]
[1680615824368,0.04590878,28200.0,28199.0,0.2763]
[1680615825227,0.04611878,28200.0,28199.0,0.2763]
[1680615825449,0.04611878,28200.0,28199.0,0.2693]
[1680615825728,0.04611878,28200.0,28199.0,0.2763]
[1680615827078,0.09475463,28200.0,28199.0,0.2663]
[1680615827519,0.05966034,28200.0,28199.0,0.2593]
[1680615827745,0.27020859,28200.0,28199.0,0.2663]
[1680615827957,0.27041859,28200.0,28199.0,0.2663]
[1680615828395,0.27041859,28200.0,28199.0,0.2593]
[1680615828652,0.29986159,28200.0,28199.0,0.2603]
[1680615828881,0.66104789,28200.0,28199.0,0.2593]
[1680615829105,0.61684304,28200.0,28198.0,0.00012]
[1680615829341,0.06790865,28199.0,28195.0,0.37793489]
[1680615829567,0.099033,28198.0,28195.0,0.00012]
[1680615829837,0.06662807,28197.0,28193.0,0.39336198]
[1680615830065,0.021279,28196.0,28193.0,0.39348198]
[1680615830291,0.03944565,28195.0,28193.0,0.00018]
[1680615830511,0.02128,28194.0,28192.0,0.79425968]
[1680615830745,0.02128,28194.0,28192.0,0.00018]
[1680615830746,0.03963436,28193.0,28192.0,0.00018]
[1680615830976,0.04672736,28193.0,28191.0,0.34231842]
[1680615831211,0.04685317,28193.0,28191.0,0.34249842]
[1680615831451,0.007093,28193.0,28192.0,0.3431817]
[1680615831678,0.007093,28193.0,28192.0,0.6000617]
[1680615831897,0.007093,28193.0,28192.0,0.26388]
[1680615832159,0.014186,28196.0,28192.0,0.63007789]
[1680615832377,0.007093,28196.0,28192.0,0.60582847]
[1680615833057,0.04360306,28195.0,28192.0,0.59882847]
[1680615833305,0.007093,28194.0,28192.0,0.59882847]
[1680615833529,0.007093,28194.0,28193.0,0.029069]
[1680615834419,0.007093,28194.0,28193.0,0.289869]
[1680615834661,0.014186,28197.0,28193.0,0.70641386]
[1680615834872,0.014186,28197.0,28193.0,0.67034486]
[1680615834873,0.007093,28195.0,28193.0,0.67034486]
[1680615835109,0.014186,28197.0,28194.0,0.027849]
[1680615835332,0.007093,28195.0,28194.0,0.027849]
[1680615835551,0.00119292,28199.0,28194.0,0.227849]
[1680615835552,0.00807492,28199.0,28194.0,0.227849]
[1680615835765,0.04628607,28198.0,28193.0,0.2608]
[1680615837968,0.0458449,28202.0,28198.0,0.59037587]
[1680615838437,0.09702554,28202.0,28198.0,0.59037587]
[1680615839546,0.09702554,28202.0,28198.0,0.61037587]
[1680615839769,0.05827164,28202.0,28198.0,0.61031587]
[1680615839997,0.05827164,28202.0,28199.0,0.4648981]
[1680615840225,0.007091,28202.0,28199.0,0.4358131]
[1680615840700,0.00099509,28204.0,28201.0,0.1342]
[1680615840958,0.00099509,28204.0,28202.0,0.230547]
[1680615841188,0.04813441,28206.0,28203.0,0.029841]
[1680615841411,0.04813441,28206.0,28202.0,0.029456]
[1680615841632,0.04813441,28206.0,28203.0,0.2504]
[1680615841852,0.00099847,28208.0,28205.0,0.1342]
[1680615841853,0.00808847,28208.0,28205.0,0.1342]
[1680615842085,0.00099847,28208.0,28206.0,0.028966]
[1680615842337,0.00709,28207.0,28206.0,0.028966]
[1680615842774,0.00709,28207.0,28205.0,0.44376068]
[1680615843014,0.00709,28207.0,28205.0,0.41379068]
[1680615843458,0.014179,28210.0,28206.0,0.029093]
[1680615843683,0.00709,28209.0,28205.0,0.41379068]
[1680615843903,0.04358271,28209.0,28205.0,0.41391068]
[1680615844119,0.05343716,28208.0,28205.0,0.41391068]
[1680615844361,0.05185685,28207.0,28205.0,0.00012]
[1680615844595,0.05185685,28207.0,28203.0,0.00018]
[1680615844596,0.00709,28206.0,28203.0,0.00018]
[1680615844850,0.00709,28206.0,28200.0,0.57626]
[1680615844851,0.14898681,28206.0,28205.0,0.007]
[1680615845078,0.035943,28206.0,28203.0,0.00012]
[1680615845303,0.035943,28206.0,28205.0,0.02]
[1680615845304,0.00709,28206.0,28205.0,0.02]
[1680615845527,0.00709,28206.0,28202.0,0.00018]
[1680615845528,0.05261024,28205.0,28202.0,0.00018]
[1680615845757,0.04540484,28204.0,28203.0,0.007]
[1680615845979,0.04540484,28204.0,28202.0,0.00018]
[1680615846214,0.04540484,28204.0,28201.0,0.32858444]
[1680615847976,0.04540484,28204.0,28199.0,0.00018]
[1680615848224,0.04540484,28204.0,28201.0,0.007]
[1680615848225,0.10274065,28204.0,28201.0,0.007]
[1680615848699,0.10274065,28204.0,28200.0,0.37083917]
[1680615848918,0.07186922,28203.0,28201.0,0.013]
[1680615849142,0.007091,28202.0,28201.0,0.013]
[1680615849812,0.05740255,28202.0,28201.0,0.013]
[1680615850493,0.05740255,28202.0,28199.0,0.00012]
[1680615850727,0.05740255,28202.0,28201.0,0.013]
[1680615850728,0.08901482,28202.0,28201.0,0.013]
[1680615850952,0.08901482,28202.0,28197.0,0.38818044]
[1680615850953,0.0193,28201.0,28197.0,0.00012]
[1680615851183,0.06015565,28200.0,28195.0,0.45662993]
[1680615851661,0.06015565,28200.0,28196.0,0.33000374]
[1680615851890,0.06015565,28200.0,28195.0,0.00018]
[1680615851891,0.0194,28199.0,28195.0,0.00018]
[1680615852119,0.08877919,28198.0,28195.0,0.02]
[1680615852351,0.08877919,28198.0,28193.0,0.1528582]
[1680615852352,0.08898919,28198.0,28193.0,0.1528582]
[1680615852591,0.230886,28198.0,28193.0,0.1528582]
[1680615852794,0.079402,28197.0,28193.0,0.1528582]
[1680615853022,0.31281244,28196.0,28193.0,0.1528582]
[1680615853260,0.05878275,28194.0,28189.0,0.36453908]
[1680615853489,0.16317881,28193.0,28190.0,0.39301926]
[1680615853721,0.03982308,28192.0,28190.0,0.39301926]
[1680615853962,0.007094,28191.0,28190.0,0.39301926]
[1680615854178,0.04704291,28191.0,28190.0,0.39301926]
[1680615854645,0.04725291,28191.0,28190.0,0.39301926]
[1680615854865,0.04725291,28191.0,28190.0,0.39401926]
[1680615855086,0.04725291,28191.0,28190.0,0.35169427]
[1680615855333,0.04804291,28191.0,28190.0,0.001]
[1680615855556,0.047193,28191.0,28190.0,0.32756094]
[1680615855788,0.054497,28191.0,28190.0,0.32756094]
[1680615855995,0.04825291,28191.0,28190.0,0.001]
[1680615856645,0.04825291,28191.0,28190.0,0.38652295]
[1680615856862,0.04115891,28191.0,28190.0,0.38652295]
[1680615857080,0.00021,28191.0,28190.0,0.38552295]
[1680615857297,0.001,28191.0,28190.0,0.38652295]
[1680615857797,0.008304,28191.0,28190.0,0.38652295]
[1680615858016,0.008304,28191.0,28190.0,0.029901]
[1680615858237,0.29736555,28191.0,28190.0,0.001]
[1680615858687,0.32871055,28191.0,28190.0,0.001]
[1680615858913,0.32871055,28191.0,28186.0,0.00033872]
[1680615858914,0.11236464,28191.0,28186.0,0.00033872]
[1680615859132,0.44962067,28190.0,28186.0,0.00033872]
[1680615859371,0.077942,28189.0,28186.0,0.00033872]
[1680615859600,0.07093045,28188.0,28186.0,0.00033872]
[1680615859813,0.007095,28187.0,28186.0,0.40774774]
[1680615860032,0.007305,28188.0,28187.0,0.43249611]
[1680615860244,0.04742145,28188.0,28187.0,0.43249611]
[1680615860460,0.05474938,28188.0,28186.0,0.00733872]
[1680615860676,0.007095,28188.0,28187.0,0.34737132]
[1680615861130,0.007305,28188.0,28187.0,0.34737132]
[1680615861590,0.04763145,28188.0,28187.0,0.34737132]
[1680615862034,0.04053645,28188.0,28187.0,0.34737132]
[1680615862266,0.04742145,28188.0,28187.0,0.37654632]
[1680615862509,0.04742145,28188.0,28187.0,0.34737132]
[1680615862730,0.04763145,28188.0,28187.0,0.34737132]
[1680615862993,0.04763145,28188.0,28187.0,0.42707132]
[1680615862994,0.08916471,28188.0,28187.0,0.42707132]
[1680615863453,0.04763145,28188.0,28187.0,0.42707132]
[1680615864424,0.04053645,28188.0,28187.0,0.42707132]
[1680615864909,0.04742145,28188.0,28187.0,0.42707132]
[1680615865123,0.04763145,28188.0,28187.0,0.42707132]
[1680615865346,0.04763145,28188.0,28187.0,0.0797]
[1680615865588,0.07722328,28188.0,28187.0,0.0797]
[1680615866031,0.04763145,28188.0,28187.0,0.0797]
[1680615866460,0.04742145,28188.0,28187.0,0.108467]
[1680615866684,0.00021,28188.0,28187.0,0.0797]
[1680615866899,0.00021,28191.0,28187.0,0.50455873]
[1680615867123,0.04013767,28190.0,28188.0,0.030381]
[1680615867354,0.04013767,28190.0,28187.0,0.53398063]
[1680615867355,0.007094,28189.0,28187.0,0.53398063]
[1680615867576,0.04026352,28188.0,28187.0,0.0797]
[1680615867803,0.04026352,28188.0,28186.0,0.00033872]
[1680615867804,0.04756852,28188.0,28186.0,0.39882141]
[1680615868049,0.07746945,28188.0,28187.0,0.02803]
[1680615868271,0.22494852,28188.0,28186.0,0.39882141]
[1680615869407,0.04756852,28188.0,28186.0,0.40582141]
[1680615869862,0.04756852,28188.0,28187.0,0.34538901]
[1680615870307,0.04756852,28188.0,28186.0,0.00033872]
[1680615870536,0.07725965,28188.0,28186.0,0.00033872]
[1680615870754,0.07746965,28188.0,28186.0,0.00033872]
[1680615870985,0.2455214,28188.0,28187.0,0.0816]
[1680615871224,0.3247974,28188.0,28186.0,0.00033872]
[1680615871447,0.028383,28187.0,28186.0,0.00033872]
[1680615871685,0.09033031,28187.0,28186.0,0.00033872]
[1680615871910,0.12901623,28187.0,28186.0,0.00033872]
[1680615872128,0.10063323,28187.0,28186.0,0.00033872]
[1680615872609,0.68134423,28187.0,28186.0,0.00033872]
[1680615872841,0.74418307,28187.0,28186.0,0.00033872]
[1680615873082,0.76948577,28187.0,28186.0,0.00033872]
[1680615873543,0.59309577,28187.0,28186.0,0.00233872]
[1680615873979,0.59309577,28187.0,28184.0,0.0211]
[1680615873980,0.81963912,28187.0,28184.0,0.0211]
[1680615874204,0.04057819,28185.0,28184.0,0.0211]
[1680615874436,0.07036419,28185.0,28184.0,0.0211]
[1680615875127,0.07136419,28185.0,28184.0,0.0231]
[1680615875824,0.27868719,28185.0,28184.0,0.0231]
[1680615876277,0.52388501,28185.0,28184.0,0.0231]
[1680615876502,0.35756888,28185.0,28184.0,0.0211]
[1680615876731,1.03046888,28185.0,28184.0,0.0231]
[1680615877002,1.03067888,28185.0,28184.0,0.0231]
[1680615877197,1.26298175,28185.0,28184.0,0.0231]
[1680615877435,0.70789758,28185.0,28184.0,0.0211]
[1680615877644,0.73189758,28185.0,28184.0,0.0221]
[1680615877863,0.70789758,28185.0,28184.0,0.0211]
[1680615878087,0.73189758,28185.0,28184.0,0.0221]
[1680615878364,0.73656521,28185.0,28184.0,0.0221]
[1680615879245,0.87606888,28185.0,28184.0,0.0221]
[1680615879684,1.07932867,28185.0,28184.0,0.0221]
[1680615879907,1.11432321,28185.0,28184.0,0.0221]
[1680615880126,0.87606888,28185.0,28184.0,0.0221]
[1680615880600,1.14747258,28185.0,28184.0,0.0221]
[1680615880818,0.87606888,28185.0,28184.0,0.0221]
[1680615881038,1.14688302,28185.0,28184.0,0.0221]
[1680615881488,0.87606888,28185.0,28184.0,0.0221]
[1680615881921,1.0942454,28185.0,28184.0,0.0221]
[1680615882143,0.9006036,28185.0,28184.0,0.01964653]
[1680615882367,1.12867001,28185.0,28184.0,0.01864653]
[1680615882592,1.15267001,28185.0,28184.0,0.01964653]
[1680615883029,0.92489297,28185.0,28184.0,0.01721759]
[1680615883730,1.19458423,28185.0,28184.0,0.01721759]
[1680615883947,1.13390254,28185.0,28184.0,0.01721759]
[1680615884177,1.13390254,28185.0,28184.0,0.01481294]
[1680615885065,0.86421128,28185.0,28184.0,0.01243234]
[1680615885287,1.18785835,28185.0,28184.0,0.01243234]
[1680615885934,0.16962028,28185.0,28184.0,0.01243234]
[1680615886152,0.13969728,28185.0,28184.0,0.01007771]
[1680615886385,0.35680433,28185.0,28184.0,0.01007771]
[1680615886593,0.38606833,28185.0,28184.0,0.01007771]
[1680615886811,0.35680433,28185.0,28184.0,0.01007771]
[1680615888133,0.11340228,28185.0,28184.0,0.00775355]
[1680615888355,0.07282409,28185.0,28184.0,0.34797819]
[1680615888607,0.07282409,28185.0,28184.0,0.36907819]
[1680615888822,0.05591909,28185.0,28184.0,0.02785355]
[1680615889282,0.05991909,28185.0,28184.0,0.02785355]
[1680615889499,0.04882409,28185.0,28184.0,0.4389431]
[1680615889719,0.05882409,28185.0,28184.0,0.4399431]
[1680615889970,0.04882409,28185.0,28184.0,0.4389431]
[1680615890193,0.05591909,28185.0,28184.0,0.4389431]
[1680615890635,0.04882409,28185.0,28184.0,0.4389431]
[1680615890856,0.06591909,28185.0,28184.0,0.4399431]
[1680615891086,0.05591909,28185.0,28184.0,0.4389431]
[1680615891317,0.05882409,28185.0,28184.0,0.51272517]
[1680615891546,0.04882409,28185.0,28184.0,0.51172517]
[1680615891769,0.05882409,28185.0,28184.0,0.51272517]
[1680615892218,0.23803788,28185.0,28184.0,0.51172517]
[1680615892468,0.06012909,28185.0,28184.0,0.48333117]
[1680615892695,0.05991909,28185.0,28184.0,0.51371917]
[1680615892933,0.05591909,28185.0,28184.0,0.51371917]
[1680615893163,0.05591909,28185.0,28184.0,0.51302217]
[1680615893393,0.05591909,28185.0,28184.0,0.51260917]
[1680615893616,0.05591909,28185.0,28184.0,0.48333117]
[1680615893875,0.05082409,28185.0,28184.0,0.49833117]
[1680615894106,0.05491909,28185.0,28184.0,0.51307317]
[1680615894327,0.05891909,28185.0,28184.0,0.51307317]
[1680615894552,0.05182409,28185.0,28184.0,0.51307317]
[1680615895004,0.02692383,28185.0,28184.0,0.51307317]
[1680615895237,0.004,28185.0,28184.0,0.51307317]
[1680615895689,0.004,28185.0,28184.0,0.51239217]
[1680615896140,0.011095,28185.0,28184.0,0.48333117]
[1680615897570,0.31982409,28185.0,28183.0,0.00018]
[1680615897802,0.04076701,28184.0,28182.0,0.31755032]
[1680615898032,0.007096,28183.0,28182.0,0.31755032]
[1680615898257,0.08145986,28183.0,28182.0,0.31755032]
[1680615898476,0.08145986,28183.0,28182.0,0.02118]
[1680615899168,0.28725486,28183.0,28182.0,0.021]
[1680615899407,0.10984486,28183.0,28182.0,0.021]
[1680615899630,0.10984486,28183.0,28182.0,0.031]
[1680615899861,0.32487221,28183.0,28182.0,0.021]
[1680615900088,0.32787221,28183.0,28182.0,0.021]
[1680615900318,0.32487221,28183.0,28182.0,0.021]
[1680615900558,0.43691318,28183.0,28182.0,0.021]
[1680615900794,0.43691318,28183.0,28182.0,0.022]
[1680615900795,0.44691318,28183.0,28182.0,0.022]
[1680615901019,0.54643086,28183.0,28182.0,0.022]
[1680615901249,1.04643086,28183.0,28182.0,0.022]
[1680615901505,1.03643086,28183.0,28182.0,0.021]
[1680615901729,1.05943086,28183.0,28182.0,0.022]
[1680615901954,1.31666937,28183.0,28182.0,0.022]
[1680615902178,1.05943086,28183.0,28182.0,0.022]
[1680615902402,1.05964086,28183.0,28182.0,0.022]
[1680615902629,1.25300709,28183.0,28182.0,0.021]
[1680615902875,1.06364086,28183.0,28182.0,0.022]
[1680615903102,1.03664086,28183.0,28182.0,0.021]
[1680615903327,1.06343086,28183.0,28182.0,0.022]
[1680615903775,1.03643086,28183.0,28182.0,0.021]
[1680615904046,1.25670522,28183.0,28182.0,0.022]
[1680615904238,1.22970522,28183.0,28182.0,0.021]
[1680615904464,1.03664086,28183.0,28182.0,0.021]
[1680615904697,1.05431186,28183.0,28182.0,0.021]
[1680615904950,1.08110186,28183.0,28182.0,0.022]
[1680615905874,0.88503186,28183.0,28182.0,0.01199771]
[1680615906095,0.91194186,28183.0,28182.0,0.01299771]
[1680615906320,0.89427086,28183.0,28182.0,0.01299771]
[1680615906549,1.10475265,28183.0,28182.0,0.01299771]
[1680615906777,1.10839884,28183.0,28182.0,0.01299771]
[1680615907242,0.69715884,28183.0,28182.0,0.01299771]
[1680615907712,0.82152286,28183.0,28182.0,0.01299771]
[1680615907950,0.90819935,28183.0,28182.0,0.00759671]
[1680615908181,1.11112224,28183.0,28182.0,0.00759671]
[1680615908427,0.90819935,28183.0,28182.0,0.00759671]
[1680615908854,1.17716217,28183.0,28182.0,0.00759671]
[1680615909183,1.18566217,28183.0,28182.0,0.00759671]
[1680615909897,0.36795586,28183.0,28182.0,0.32042067]
[1680615910128,0.04943922,28183.0,28182.0,0.31835675]
[1680615910353,0.09749108,28183.0,28182.0,0.00553279]
[1680615910584,0.35032467,28183.0,28182.0,0.00535279]
[1680615910806,0.33745636,28183.0,28182.0,1.02305279]
[1680615911031,0.33745636,28183.0,28182.0,1.02323279]
[1680615911251,0.31501714,28183.0,28182.0,1.01553279]
[1680615911480,0.28801714,28183.0,28182.0,1.01453279]
[1680615911731,0.28901714,28183.0,28182.0,1.02453279]
[1680615911924,0.04095586,28183.0,28182.0,1.01453279]
[1680615912174,0.04395586,28183.0,28182.0,1.02173279]
[1680615912420,0.04805186,28183.0,28182.0,1.02173279]
[1680615912651,0.04395586,28183.0,28182.0,1.02173279]
[1680615912871,0.04095586,28183.0,28182.0,1.40141222]
[1680615913105,0.007096,28185.0,28182.0,1.40141222]
[1680615913348,0.007305,28188.0,28182.0,1.02173279]
[1680615913564,0.04064113,28187.0,28182.0,1.02173279]
[1680615914028,0.04064113,28187.0,28183.0,0.229505]
[1680615914289,0.04064113,28187.0,28184.0,0.031355]
[1680615914745,0.04064113,28187.0,28183.0,0.20018]
[1680615914968,0.27736555,28187.0,28183.0,0.20018]
[1680615915216,0.001,28187.0,28184.0,0.027649]
[1680615915474,0.001,28187.0,28185.0,0.0072]
[1680615915700,0.001,28187.0,28186.0,0.0284]
[1680615915929,0.00021,28192.0,28186.0,1.03901056]
[1680615916164,0.22056237,28194.0,28187.0,0.75650356]
[1680615916397,0.22035237,28194.0,28188.0,0.029332]
[1680615916589,0.22035237,28194.0,28188.0,0.029512]
[1680615916885,0.22035237,28194.0,28189.0,0.2]
[1680615917116,0.22035237,28194.0,28190.0,0.029739]
[1680615917343,0.263744,28196.0,28191.0,0.72661056]
[1680615917568,0.263744,28196.0,28192.0,0.029948]
[1680615917569,0.263534,28196.0,28192.0,0.029948]
[1680615917798,0.00021,28198.0,28193.0,0.0075]
[1680615918021,0.20702369,28199.0,28194.0,0.029934]
[1680615918705,0.001,28196.0,28194.0,0.029934]
[1680615918925,0.22838173,28200.0,28194.0,0.179934]
[1680615919154,0.22838173,28200.0,28194.0,0.002]
[1680615919155,0.2646698,28197.0,28194.0,0.002]
[1680615919407,0.2717628,28197.0,28194.0,0.00218]
[1680615919647,0.2646698,28197.0,28194.0,0.00212]
[1680615919885,0.2646698,28197.0,28194.0,0.028022]
[1680615920119,0.00021,28198.0,28194.0,0.027962]
[1680615920386,0.00021,28200.0,28195.0,0.36887037]
[1680615920606,0.24715508,28199.0,28195.0,0.36887037]
[1680615920827,0.24736508,28199.0,28195.0,0.36887037]
[1680615921052,0.24736508,28199.0,28196.0,0.030017]
[1680615921508,0.24730508,28199.0,28196.0,0.030017]
[1680615921731,0.24715508,28199.0,28196.0,0.030017]
[1680615922433,0.25948768,28198.0,28196.0,0.030017]
[1680615922656,0.21953229,28197.0,28193.0,0.50725316]
[1680615922883,0.3685211,28197.0,28194.0,0.028164]
[1680615923109,0.21953229,28197.0,28194.0,0.37584209]
[1680615923350,0.22662529,28197.0,28195.0,0.030088]
[1680615923801,0.21953229,28197.0,28196.0,0.001]
[1680615924032,0.21940925,28197.0,28195.0,0.030088]
[1680615924275,0.22750125,28197.0,28195.0,0.030088]
[1680615924564,0.22650125,28197.0,28195.0,0.030088]
[1680615924781,0.03925696,28196.0,28195.0,0.02]
[1680615925041,0.04634996,28196.0,28195.0,0.049956]
[1680615925529,0.04634996,28196.0,28195.0,0.029956]
[1680615925745,0.27300783,28196.0,28195.0,0.016]
[1680615926648,0.27300783,28196.0,28195.0,0.03019]
[1680615926879,0.27400783,28196.0,28195.0,0.016]
[1680615927145,0.04734996,28196.0,28195.0,0.046187]
[1680615927627,0.04734996,28196.0,28195.0,0.016]
[1680615927828,0.04025696,28196.0,28195.0,0.016]
[1680615928222,0.001,28196.0,28195.0,0.4178182]
[1680615930914,0.001,28196.0,28195.0,0.4178782]
[1680615931143,0.001,28196.0,28195.0,0.4179982]
[1680615931418,0.001,28196.0,28195.0,0.4178182]
[1680615931638,0.001,28196.0,28195.0,0.4179982]
[1680615932093,0.001,28196.0,28195.0,0.4178182]
[1680615932340,0.001,28196.0,28195.0,0.77299356]
[1680615932577,0.001,28196.0,28195.0,0.87087956]
[1680615933043,0.02310001,28202.0,28195.0,0.85505956]
[1680615933280,0.17208782,28202.0,28197.0,0.0839]
[1680615933500,0.05324597,28202.0,28198.0,0.029537]
[1680615933731,0.05324597,28202.0,28198.0,0.024537]
[1680615933732,0.2505409,28202.0,28198.0,0.024537]
[1680615933965,0.02331001,28202.0,28198.0,0.024537]
[1680615934186,0.02310001,28202.0,28198.0,0.024537]
[1680615934409,0.24894499,28202.0,28198.0,0.024537]
[1680615934628,0.24262799,28202.0,28198.0,0.024537]
[1680615934907,0.0387539,28201.0,28198.0,0.044537]
[1680615935140,0.007092,28200.0,28199.0,0.026604]
[1680615935373,0.04590878,28200.0,28199.0,0.026604]
[1680615935813,0.20442484,28201.0,28199.0,0.026604]
[1680615936043,0.02427081,28200.0,28198.0,0.39647641]
[1680615936263,0.02427081,28200.0,28199.0,0.027725]
[1680615936488,0.43832048,28200.0,28199.0,0.025871]
[1680615936713,0.43853048,28200.0,28199.0,0.025871]
[1680615936931,0.43853048,28200.0,28199.0,0.018871]
[1680615937170,0.43853048,28200.0,28198.0,0.033747]
[1680615937398,0.42528647,28199.0,28197.0,0.2]
[1680615937630,0.02448081,28200.0,28199.0,0.007]
[1680615937855,0.02427081,28200.0,28199.0,0.018475]
[1680615938074,0.36680677,28201.0,28199.0,0.018475]
[1680615938297,0.00021,28201.0,28199.0,0.018475]
[1680615938522,0.43098123,28202.0,28200.0,0.39287516]
[1680615938742,0.43119123,28202.0,28201.0,0.020428]
[1680615939653,0.43119123,28202.0,28200.0,0.39287516]
[1680615939930,0.02331001,28202.0,28201.0,0.018788]
[1680615940157,0.04729817,28202.0,28201.0,0.018788]
[1680615940384,0.04529817,28202.0,28201.0,0.018788]
[1680615940618,0.04008817,28202.0,28201.0,0.018788]
[1680615941061,0.04717917,28202.0,28201.0,0.018788]
[1680615941519,0.04217917,28202.0,28199.0,0.00018]
[1680615941739,0.04217917,28202.0,28200.0,0.24534108]
[1680615941955,0.04217917,28202.0,28201.0,0.033661]
[1680615942186,0.04217917,28202.0,28201.0,0.019661]
[1680615942431,0.03508817,28202.0,28201.0,0.45518626]
[1680615942655,0.03508817,28202.0,28201.0,0.43518626]
[1680615942876,0.03508817,28202.0,28201.0,0.41552526]
[1680615943533,0.03508817,28202.0,28201.0,0.43552526]
[1680615943755,0.03508817,28202.0,28201.0,0.45550326]
[1680615943973,0.03508817,28202.0,28201.0,0.43550326]
[1680615944627,0.03508817,28202.0,28201.0,0.41552526]
[1680615944848,0.03508817,28202.0,28201.0,0.44931526]
[1680615945061,0.03508817,28202.0,28201.0,0.43531526]
[1680615945285,0.03508817,28202.0,28201.0,0.45531526]
[1680615945721,0.03508817,28202.0,28201.0,0.43531526]
[1680615945948,0.03508817,28202.0,28201.0,0.44931526]
[1680615946399,0.03508817,28202.0,28201.0,1.44531526]
[1680615946643,0.03508817,28202.0,28201.0,1.46531526]
[1680615947580,0.03508817,28202.0,28201.0,1.02979]
[1680615947806,0.03508817,28202.0,28201.0,1.04385]
[1680615948017,0.03508817,28202.0,28201.0,1.02985]
[1680615948241,0.03508817,28202.0,28201.0,1.04985]
[1680615948691,0.37424427,28202.0,28201.0,1.02985]
[1680615948917,0.38133527,28202.0,28201.0,1.02418]
[1680615949138,0.04217917,28202.0,28201.0,1.02418]
[1680615949375,0.04217917,28202.0,28201.0,1.044296]
[1680615950074,0.04217917,28202.0,28201.0,1.02406]
[1680615950309,0.23654127,28202.0,28201.0,1.024]
[1680615950537,1.13452627,28202.0,28201.0,0.59447326]
[1680615950763,1.13452627,28202.0,28201.0,0.47065143]
[1680615950764,0.69262946,28202.0,28201.0,0.47065143]
[1680615950989,0.79281581,28202.0,28201.0,0.46684689]
[1680615951184,1.09281581,28202.0,28201.0,0.45284689]
[1680615951454,1.23295856,28202.0,28201.0,0.45284689]
[1680615951688,0.44342946,28202.0,28201.0,0.45984689]
[1680615951909,0.85864224,28202.0,28201.0,0.45484689]
[1680615952142,0.85864224,28202.0,28201.0,0.45264807]
[1680615952378,0.43492946,28202.0,28201.0,0.45064807]
[1680615952598,0.5856274,28202.0,28201.0,0.45264807]
[1680615952818,0.49407851,28202.0,28201.0,0.45264807]
[1680615953039,0.49407851,28202.0,28201.0,0.45047124]
[1680615953253,0.91129391,28202.0,28201.0,0.45047124]
[1680615953473,0.49207851,28202.0,28201.0,0.44847124]
[1680615953698,0.8962615,28202.0,28201.0,0.45047124]
[1680615954200,0.8962615,28202.0,28201.0,0.44831618]
[1680615955080,0.8962615,28202.0,28201.0,0.44618267]
[1680615955541,0.83911245,28202.0,28201.0,0.44618267]
[1680615956200,0.85032719,28202.0,28201.0,0.44066238]
[1680615956423,0.85305319,28202.0,28201.0,0.44266238]
[1680615956646,0.4490032,28202.0,28201.0,0.27874939]
[1680615956884,0.50588935,28202.0,28201.0,0.27874939]
[1680615957095,0.80588935,28202.0,28201.0,0.27528777]
[1680615957341,0.93013439,28202.0,28201.0,0.27528777]
[1680615957796,0.80588935,28202.0,28201.0,0.27528777]
[1680615958024,0.76695535,28202.0,28201.0,0.27528777]
[1680615958251,0.46674535,28202.0,28201.0,0.27206385]
[1680615958689,0.45284535,28202.0,28201.0,0.27206385]
[1680615958909,0.41428006,28202.0,28201.0,0.27206385]
[1680615959135,0.37707716,28202.0,28201.0,0.27006385]
[1680615959363,0.37907716,28202.0,28201.0,0.27206385]
[1680615959802,0.01310001,28202.0,28201.0,0.27106385]
[1680615960913,0.01310001,28202.0,28201.0,0.29101785]
[1680615961139,0.01310001,28202.0,28201.0,0.55268079]
[1680615962537,0.01310001,28202.0,28201.0,0.55368079]
[1680615962775,0.01310001,28202.0,28201.0,0.55268079]
[1680615962965,0.01310001,28202.0,28201.0,0.57268079]
[1680615964085,0.03490596,28202.0,28201.0,0.57268079]
[1680615964983,0.03490596,28202.0,28201.0,0.90739135]
[1680615965216,0.03490596,28202.0,28201.0,0.92739135]
[1680615966356,0.03490596,28202.0,28201.0,1.29929135]
[1680615966585,0.22116866,28202.0,28201.0,0.31001785]
[1680615966842,0.22116866,28202.0,28192.0,0.0839]
[1680615966843,0.82384907,28202.0,28200.0,0.00018]
[1680615967091,0.39820316,28201.0,28195.0,0.00012]
[1680615967318,0.14898881,28200.0,28198.0,0.35002187]
[1680615967563,0.007092,28200.0,28198.0,0.00018]
[1680615967784,0.03887965,28199.0,28196.0,0.37577213]
[1680615968011,0.007092,28198.0,28197.0,0.01298]
[1680615968701,0.007092,28198.0,28194.0,0.08495173]
[1680615968702,0.0461603,28198.0,28194.0,0.08495173]
[1680615968937,0.18115377,28197.0,28194.0,0.00018]
[1680615969173,0.021279,28196.0,28193.0,0.00018]
[1680615969414,0.05968893,28195.0,28193.0,0.013084]
[1680615969683,0.007093,28194.0,28191.0,0.24293924]
[1680615969900,0.007093,28194.0,28192.0,0.00948]
[1680615969901,0.03969726,28193.0,28192.0,0.00948]